bitfinex-derivatives/quotes_BTCF0:USTF0_20250528
["timestamp","ask_amount","ask_price","bid_price","bid_amount"]
[1748463914833,1.7525045,107260.0,107250.0,0.00491007]
[1748463915034,1.89277487,107260.0,107250.0,0.00491007]
[1748463916531,1.53197487,107260.0,107250.0,0.00491007]
[1748463916737,2.25357487,107260.0,107250.0,0.00491007]
[1748463917126,2.25357487,107260.0,107250.0,7e-08]
[1748463917528,0.1864351,107250.0,107240.0,4e-08]
[1748463917827,0.1864872,107220.0,107210.0,0.0676991]
[1748463918034,1.7275481,107220.0,107210.0,0.0676991]
[1748463918334,1.72201445,107220.0,107210.0,0.0678191]
[1748463918726,1.72201445,107220.0,107210.0,0.2543237]
[1748463918934,0.46090725,107220.0,107210.0,0.5299646]
[1748463919236,0.15380725,107220.0,107210.0,0.9007646]
[1748463919444,0.34029445,107220.0,107210.0,0.9047646]
[1748463919941,0.34029445,107220.0,107210.0,0.3318237]
[1748463920239,0.3264872,107220.0,107210.0,0.6926237]
[1748463921735,0.3264872,107220.0,107210.0,0.3358237]
[1748463921938,0.3264872,107220.0,107210.0,0.6966237]
[1748463922134,0.3264872,107220.0,107210.0,0.7107984]
[1748463922630,0.3264872,107220.0,107210.0,0.71076129]
[1748463922830,0.3264872,107220.0,107210.0,0.34996134]
[1748463923025,0.5264872,107220.0,107210.0,0.34996135]
[1748463923226,0.5264872,107220.0,107210.0,0.3258237]
[1748463923227,0.8872872,107220.0,107210.0,0.3258237]
[1748463923430,0.9488872,107220.0,107210.0,0.3257037]
[1748463923627,0.9488872,107220.0,107210.0,0.3258237]
[1748463923828,0.9488872,107220.0,107210.0,0.1391991]
[1748463924037,1.0134872,107220.0,107210.0,0.1393191]
[1748463924439,1.0134872,107220.0,107210.0,0.3257037]
[1748463924642,1.0134872,107220.0,107210.0,0.3258237]
[1748463925031,1.0134872,107220.0,107210.0,0.1393191]
[1748463925344,0.80868287,107230.0,107220.0,0.1864872]
[1748463925637,1.17868287,107230.0,107220.0,0.5904281]
[1748463925838,1.64476287,107230.0,107220.0,0.3782872]
[1748463926242,1.64476287,107230.0,107220.0,0.39241894]
[1748463926445,1.64476287,107230.0,107220.0,0.3832872]
[1748463926828,1.64476287,107230.0,107220.0,0.39743219]
[1748463927028,1.28396287,107230.0,107220.0,0.3832872]
[1748463929243,1.64476287,107230.0,107220.0,0.39743211]
[1748463929444,1.17868287,107230.0,107220.0,0.3832872]
[1748463929632,1.28256287,107230.0,107220.0,0.3832872]
[1748463929828,1.28256287,107230.0,107220.0,0.39743204]
[1748463930035,1.64336287,107230.0,107220.0,0.3832872]
[1748463930436,0.81788287,107230.0,107220.0,0.39743208]
[1748463930639,0.97900167,107230.0,107220.0,0.3832872]
[1748463930843,0.16014017,107230.0,107220.0,0.5954281]
[1748463931149,0.16014017,107230.0,107220.0,1.07363203]
[1748463931443,0.16014017,107230.0,107220.0,1.16077478]
[1748463931638,0.16014017,107230.0,107220.0,1.17491844]
[1748463931838,0.16014017,107230.0,107220.0,1.63943844]
[1748463932038,0.16014017,107230.0,107220.0,1.62529478]
[1748463932236,0.16014017,107230.0,107220.0,1.85529478]
[1748463932442,0.16014017,107230.0,107220.0,1.97155172]
[1748463932636,0.34660997,107230.0,107220.0,1.98569523]
[1748463932837,0.34660997,107230.0,107220.0,1.97155172]
[1748463933135,0.34660997,107230.0,107220.0,1.98569521]
[1748463933339,0.34660997,107230.0,107220.0,1.8844087]
[1748463934032,0.34660997,107230.0,107220.0,1.34077219]
[1748463934346,0.34660997,107230.0,107220.0,0.48447252]
[1748463934541,0.54660997,107230.0,107220.0,0.48459252]
[1748463934944,0.10014017,107230.0,107220.0,1.06741342]
[1748463935141,0.28661007,107230.0,107220.0,1.06753342]
[1748463935445,0.28661007,107230.0,107220.0,1.11089197]
[1748463935640,0.10014017,107230.0,107220.0,1.11089195]
[1748463935841,0.10465572,107230.0,107220.0,1.0967487]
[1748463936348,0.10465572,107230.0,107220.0,1.11085955]
[1748463936545,0.10465572,107230.0,107220.0,1.0967487]
[1748463936742,0.10465572,107230.0,107220.0,1.12085955]
[1748463937044,0.10465572,107230.0,107220.0,1.12085954]
[1748463937250,0.10465572,107230.0,107220.0,1.20794831]
[1748463937936,0.10465572,107230.0,107220.0,1.79014197]
[1748463938336,0.10465572,107230.0,107220.0,1.70305321]
[1748463939441,0.10465572,107230.0,107220.0,1.77352116]
[1748463939843,0.10490572,107230.0,107220.0,1.77352116]
[1748463940243,0.10490572,107230.0,107220.0,2.00936177]
[1748463940445,0.10490572,107230.0,107220.0,1.99936177]
[1748463940643,0.10490572,107230.0,107220.0,2.01354867]
[1748463940842,0.10490572,107230.0,107220.0,1.94638411]
[1748463941041,0.10490572,107230.0,107220.0,2.09111881]
[1748463941245,0.10490572,107230.0,107220.0,2.09111721]
[1748463941454,0.10490572,107230.0,107220.0,2.1053035]
[1748463941942,0.10490572,107230.0,107220.0,2.09111721]
[1748463942149,0.10490572,107230.0,107220.0,2.20735097]
[1748463942349,0.10490572,107230.0,107220.0,2.09111721]
[1748463942837,0.10490572,107230.0,107220.0,2.10530349]
[1748463943042,0.10490572,107230.0,107220.0,2.09111721]
[1748463943848,0.10490572,107230.0,107220.0,2.20733653]
[1748463944051,0.10490572,107230.0,107220.0,2.10530332]
[1748463944249,0.10490572,107230.0,107220.0,2.09111721]
[1748463944447,0.10490572,107230.0,107220.0,2.20733678]
[1748463944647,0.10490572,107230.0,107220.0,1.74389678]
[1748463944846,0.10490572,107230.0,107220.0,2.20561678]
[1748463945151,0.10490572,107230.0,107220.0,2.21979265]
[1748463946054,0.10490572,107230.0,107220.0,2.21979219]
[1748463946238,0.10490572,107230.0,107220.0,2.21979231]
[1748463946442,0.10490572,107230.0,107220.0,2.2197764]
[1748463946646,0.24821784,107260.0,107250.0,0.1864351]
[1748463946956,1.09479288,107260.0,107250.0,0.49354626]
[1748463947138,1.48059784,107260.0,107250.0,0.28140536]
[1748463947636,1.51938773,107260.0,107250.0,0.28140214]
[1748463947850,1.52038773,107260.0,107250.0,0.28140346]
[1748463948057,1.52038773,107260.0,107250.0,0.28152346]
[1748463948242,1.52038773,107260.0,107250.0,0.26734023]
[1748463948243,1.52238773,107260.0,107250.0,0.26734023]
[1748463949043,1.52238773,107260.0,107250.0,0.34722345]
[1748463949246,1.52238773,107260.0,107250.0,0.33304023]
[1748463950157,1.52690328,107260.0,107250.0,0.34722394]
[1748463950744,1.52690328,107260.0,107250.0,0.34722395]
[1748463950948,1.52690328,107260.0,107250.0,0.33304023]
[1748463951153,1.48811339,107260.0,107250.0,0.34722394]
[1748463951355,1.48811339,107260.0,107250.0,0.33304023]
[1748463951855,1.48811339,107260.0,107250.0,0.3472237]
[1748463952052,1.48811339,107260.0,107250.0,0.34722371]
[1748463952254,1.48811339,107260.0,107250.0,0.33304023]
[1748463952460,1.48811339,107260.0,107250.0,0.28154343]
[1748463952652,1.48811339,107260.0,107250.0,0.26734023]
[1748463953556,1.52691747,107260.0,107250.0,0.26734023]
[1748463954150,1.52691747,107260.0,107250.0,0.28154375]
[1748463954350,1.52691747,107260.0,107250.0,0.26734023]
[1748463955669,1.52691747,107260.0,107250.0,0.28154376]
[1748463955866,1.52691747,107260.0,107250.0,0.26734023]
[1748463956551,1.52691747,107260.0,107250.0,0.28154393]
[1748463956762,1.52691747,107260.0,107250.0,0.26734023]
[1748463957463,1.52691747,107260.0,107250.0,0.28154393]
[1748463957665,1.52691747,107260.0,107250.0,0.34304393]
[1748463958058,1.52691747,107260.0,107250.0,0.34304409]
[1748463958270,1.52694135,107260.0,107250.0,0.32884023]
[1748463958862,1.52694135,107260.0,107250.0,0.34304409]
[1748463959062,1.52694135,107260.0,107250.0,0.32884023]
[1748463960462,1.52694135,107260.0,107250.0,0.4159828]
[1748463960860,1.54092135,107260.0,107250.0,0.43018684]
[1748463961165,1.79658751,107260.0,107250.0,0.01430513]
[1748463961465,1.79658751,107260.0,107250.0,0.01418513]
[1748463961466,1.85451705,107260.0,107250.0,0.01418513]
[1748463961670,1.85451705,107260.0,107250.0,0.01430513]
[1748463962866,1.85451705,107260.0,107250.0,0.02851004]
[1748463963171,1.85451705,107260.0,107250.0,0.01430513]
[1748463963355,1.85451705,107260.0,107250.0,0.02851004]
[1748463963560,1.85451705,107260.0,107250.0,0.01430513]
[1748463963757,1.85451705,107260.0,107250.0,0.02851004]
[1748463963963,1.85451705,107260.0,107250.0,0.02851003]
[1748463964664,1.64237615,107260.0,107250.0,0.02851004]
[1748463964968,1.64237615,107260.0,107250.0,0.01430513]
[1748463965974,1.64237615,107260.0,107250.0,0.02851003]
[1748463966267,1.85451705,107260.0,107250.0,0.01430513]
[1748463966486,1.86099179,107260.0,107250.0,0.01430513]
[1748463966767,1.89002337,107260.0,107250.0,0.02851074]
[1748463967072,2.23325937,107260.0,107250.0,0.01430513]
[1748463967266,2.26207182,107260.0,107250.0,0.01430513]
[1748463967468,3.31983182,107260.0,107250.0,0.02839113]
[1748463967667,3.31983182,107260.0,107250.0,0.01430513]
[1748463967968,3.31983182,107260.0,107250.0,0.02839184]
[1748463968170,3.31983182,107260.0,107250.0,0.01430513]
[1748463968673,3.31983182,107260.0,107250.0,0.01420674]
[1748463968878,0.1864351,107250.0,107240.0,0.00293017]
[1748463969065,1.57886682,107250.0,107240.0,0.00293017]
[1748463969377,1.96100559,107250.0,107240.0,0.00293017]
[1748463969569,1.96100559,107250.0,107240.0,0.00305017]
[1748463970764,1.92211083,107250.0,107240.0,0.00305017]
[1748463970970,1.96096082,107250.0,107240.0,0.00305017]
[1748463972574,2.07539681,107250.0,107240.0,0.00305017]
[1748463973079,2.03179379,107250.0,107240.0,0.00305017]
[1748463974278,2.03179379,107250.0,107240.0,0.06825017]
[1748463975174,1.81966139,107250.0,107240.0,0.06825017]
[1748463975373,2.03180229,107250.0,107240.0,0.06825017]
[1748463975666,1.24642139,107250.0,107240.0,0.31830257]
[1748463975871,1.71156906,107250.0,107240.0,0.13185017]
[1748463976175,1.98180229,107250.0,107240.0,0.13185017]
[1748463976376,1.98180229,107250.0,107240.0,0.13173017]
[1748463976580,1.98180229,107250.0,107240.0,0.13185017]
[1748463976886,1.98180229,107250.0,107240.0,0.06813017]
[1748463977478,2.03180229,107250.0,107240.0,0.06813017]
[1748463977783,2.03180229,107250.0,107240.0,0.06825017]
[1748463978086,2.03180229,107250.0,107240.0,0.06813017]
[1748463978266,2.03180229,107250.0,107240.0,0.06825017]
[1748463978877,2.03180229,107250.0,107240.0,0.13246017]
[1748463979579,2.03181261,107250.0,107240.0,0.13246017]
[1748463979785,1.81967171,107250.0,107240.0,0.13246017]
[1748463979985,2.03181261,107250.0,107240.0,0.13246017]
[1748463980473,2.03632816,107250.0,107240.0,0.13246017]
[1748463981172,1.57868816,107250.0,107240.0,0.13246017]
[1748463981374,1.31654726,107250.0,107240.0,0.13246017]
[1748463981576,1.71609493,107250.0,107240.0,0.31891257]
[1748463981880,1.71609493,107250.0,107240.0,0.13246017]
[1748463982091,1.19175493,107250.0,107240.0,0.31891257]
[1748463982377,1.54384174,107250.0,107240.0,0.53105347]
[1748463983783,1.54384174,107250.0,107240.0,0.31891257]
[1748463985282,1.08620174,107250.0,107240.0,0.31891257]
[1748463985483,1.54384174,107250.0,107240.0,0.31891257]
[1748463986186,1.54384174,107250.0,107240.0,0.51302554]
[1748463986685,1.54384174,107250.0,107240.0,0.51581554]
[1748463987183,1.55782174,107250.0,107240.0,0.51581554]
[1748463987980,1.51897055,107250.0,107240.0,0.51581554]
[1748463988178,1.5578317,107250.0,107240.0,0.51581554]
[1748463989581,1.75194467,107250.0,107240.0,0.13525017]
[1748463989771,1.92060758,107250.0,107240.0,0.13513017]
[1748463990178,1.92060758,107250.0,107240.0,0.13525017]
[1748463991182,1.72649461,107250.0,107240.0,0.13525017]
[1748463991586,1.92060758,107250.0,107240.0,0.32170267]
[1748463991775,1.60139461,107250.0,107240.0,0.32170267]
[1748463991975,1.60139461,107250.0,107240.0,0.14946391]
[1748463992180,1.60139461,107250.0,107240.0,0.13525017]
[1748463992376,1.60141788,107250.0,107240.0,0.32170257]
[1748463992783,1.02817788,107250.0,107240.0,0.33591639]
[1748463992971,1.60133788,107250.0,107240.0,0.32170267]
[1748463993383,1.60133788,107250.0,107240.0,0.13525017]
[1748463993686,1.85715085,107250.0,107240.0,0.13525017]
[1748463993873,1.92105085,107250.0,107240.0,0.33591768]
[1748463994075,1.92105085,107250.0,107240.0,0.32170267]
[1748463994378,1.66299788,107250.0,107240.0,0.33591769]
[1748463994578,1.66299788,107250.0,107240.0,0.32170267]
[1748463995586,0.84174288,107250.0,107240.0,0.51581564]
[1748463995880,1.55772269,107250.0,107240.0,0.51581564]
[1748463996386,0.79816759,107250.0,107240.0,0.32170267]
[1748463996586,0.98461132,107250.0,107240.0,0.32170267]
[1748463998389,0.98461132,107250.0,107240.0,0.40884524]
[1748463999290,0.98461132,107250.0,107240.0,0.32170267]
[1748464000186,0.98461132,107250.0,107240.0,0.40884524]
[1748464002492,1.44205132,107250.0,107240.0,0.40884524]
[1748464002885,1.44205132,107250.0,107240.0,0.60295821]
[1748464004685,1.50565132,107250.0,107240.0,0.60295821]
[1748464005186,1.56759898,107250.0,107240.0,0.22239274]
[1748464005386,1.56759898,107250.0,107240.0,0.40884514]
[1748464005582,1.56759898,107250.0,107240.0,0.22239274]
[1748464005790,1.56759898,107250.0,107240.0,0.40884514]
[1748464005977,1.87723195,107250.0,107240.0,0.22239274]
[1748464006288,1.72671668,107250.0,107240.0,0.06813017]
[1748464006785,1.92082965,107250.0,107240.0,0.06813017]
[1748464007188,1.92082965,107250.0,107240.0,0.06825017]
[1748464007389,1.92082965,107250.0,107240.0,0.06813017]
[1748464007694,1.72671668,107250.0,107240.0,0.06825017]
[1748464007897,1.92082965,107250.0,107240.0,0.13325017]
[1748464008185,1.92082965,107250.0,107240.0,0.22039274]
[1748464009392,1.83920362,107250.0,107240.0,0.22039274]
[1748464009580,1.92086602,107250.0,107240.0,0.22039274]
[1748464011783,1.92086602,107250.0,107240.0,0.2346855]
[1748464012492,1.92086602,107250.0,107240.0,0.23467657]
[1748464012882,1.72675305,107250.0,107240.0,0.23467657]
[1748464013082,1.92086602,107250.0,107240.0,0.14753399]
[1748464013678,1.92086602,107250.0,107240.0,0.14753391]
[1748464013984,1.92086602,107250.0,107240.0,0.234677]
[1748464014186,2.42609773,107250.0,107240.0,9e-08]
[1748464014485,2.42609773,107250.0,107220.0,0.01414366]
[1748464014486,0.1864698,107230.0,107220.0,0.01414366]
[1748464014690,0.1864698,107230.0,107220.0,0.07954366]
[1748464014691,2.05502277,107230.0,107220.0,0.07954366]
[1748464014890,2.32161655,107230.0,107220.0,0.07954366]
[1748464015194,2.32161655,107230.0,107220.0,0.26603086]
[1748464015400,2.32161655,107230.0,107220.0,0.14114366]
[1748464015592,2.26347456,107230.0,107220.0,0.32775086]
[1748464015795,1.69063456,107230.0,107220.0,0.20476366]
[1748464015982,2.26347456,107230.0,107220.0,0.20476366]
[1748464016186,2.26347456,107230.0,107220.0,0.39125086]
[1748464016493,2.26347456,107230.0,107220.0,0.20476366]
[1748464016692,2.26347456,107230.0,107220.0,0.20676366]
[1748464016900,2.26347456,107230.0,107220.0,0.08466366]
[1748464018403,2.06936159,107230.0,107220.0,0.33515096]
[1748464018697,2.26347456,107230.0,107220.0,0.14866366]
[1748464019700,2.06936159,107230.0,107220.0,0.14866366]
[1748464019885,2.26347456,107230.0,107220.0,0.08466366]
[1748464020391,2.26347456,107230.0,107220.0,0.08454366]
[1748464020701,2.06936159,107230.0,107220.0,0.14676366]
[1748464021006,2.26347456,107230.0,107220.0,0.14676366]
[1748464021800,1.49652159,107230.0,107220.0,0.33325096]
[1748464022001,2.06936159,107230.0,107220.0,0.39765096]
[1748464022193,2.06980052,107230.0,107220.0,0.39765096]
[1748464022495,2.02626518,107230.0,107220.0,0.39765096]
[1748464022695,1.45342518,107230.0,107220.0,0.39765096]
[1748464022899,1.17782528,107230.0,107220.0,0.39765096]
[1748464023503,1.53862528,107230.0,107220.0,0.39765096]
[1748464023798,1.60242528,107230.0,107220.0,0.39765096]
[1748464024100,1.53862528,107230.0,107220.0,0.39765096]
[1748464024498,1.59952528,107230.0,107220.0,0.39765096]
[1748464025198,1.79363825,107230.0,107220.0,0.39765096]
[1748464025400,1.66582528,107230.0,107220.0,0.39765096]
[1748464025804,0.77935538,107230.0,107220.0,0.59176393]
[1748464025997,0.68583538,107230.0,107220.0,0.60176393]
[1748464026196,0.65179555,107230.0,107220.0,0.60176393]
[1748464026399,0.83826685,107230.0,107220.0,0.60176393]
[1748464026602,0.38098685,107230.0,107220.0,0.60176393]
[1748464027200,0.83826685,107230.0,107220.0,0.60176393]
[1748464031705,0.38098685,107230.0,107220.0,0.60176393]
[1748464032110,0.19451555,107230.0,107220.0,1.2499369]
[1748464032296,0.19451555,107230.0,107220.0,1.05582393]
[1748464032503,0.19451555,107230.0,107220.0,1.36614625]
[1748464032902,0.19451555,107230.0,107220.0,1.17203328]
[1748464033103,0.38098715,107230.0,107220.0,1.17203328]
[1748464034910,0.19451555,107230.0,107220.0,1.17203328]
[1748464035612,0.19451555,107230.0,107220.0,0.97792031]
[1748464035802,0.19451555,107230.0,107220.0,1.17203328]
[1748464036502,0.19451555,107230.0,107220.0,1.07877328]
[1748464039311,0.38098715,107230.0,107220.0,0.71797328]
[1748464039503,0.38098715,107230.0,107220.0,0.71785328]
[1748464039704,0.19451555,107230.0,107220.0,0.71797328]
[1748464040013,0.38098715,107230.0,107220.0,1.07877328]
[1748464040812,0.38098715,107230.0,107220.0,0.52386031]
[1748464041010,0.38098715,107230.0,107220.0,0.71797328]
[1748464041208,0.19451555,107230.0,107220.0,1.07877328]
[1748464041402,0.19451555,107230.0,107220.0,1.07865328]
[1748464041607,0.19451555,107230.0,107220.0,1.29288625]
[1748464041812,0.19451555,107230.0,107220.0,1.07877328]
[1748464042409,0.19451555,107230.0,107220.0,1.27288625]
[1748464042618,0.00451555,107230.0,107220.0,1.61614625]
[1748464043111,0.00451555,107230.0,107220.0,1.67614625]
[1748464043416,0.00451555,107230.0,107220.0,1.7046716]
[1748464043910,0.00451555,107230.0,107220.0,1.77512467]
[1748464045416,0.00451555,107230.0,107220.0,1.89048467]
[1748464047715,0.00451555,107230.0,107220.0,2.25430467]
[1748464048817,0.00451555,107230.0,107220.0,2.1838516]
[1748464049620,0.00451555,107230.0,107220.0,2.25430467]
[1748464050011,0.00451555,107230.0,107220.0,2.1838516]
[1748464050218,0.00451555,107230.0,107220.0,2.25430467]
[1748464050611,0.01849555,107230.0,107220.0,2.1838516]
[1748464051021,0.01849555,107230.0,107220.0,2.0391169]
[1748464051409,0.01849555,107230.0,107220.0,1.65089096]
[1748464051702,0.01849555,107230.0,107220.0,2.0391169]
[1748464053109,0.01849555,107230.0,107220.0,2.15541923]
[1748464053416,0.01849555,107230.0,107220.0,1.69833923]
[1748464054216,0.01849555,107230.0,107220.0,1.70112923]
[1748464054418,0.01849555,107230.0,107220.0,1.31290329]
[1748464054611,0.01849555,107230.0,107220.0,1.70112923]
[1748464056917,0.01849555,107230.0,107220.0,1.68698557]
[1748464060219,0.01849555,107230.0,107220.0,1.4928726]
[1748464061018,0.01849555,107230.0,107220.0,1.37657027]
[1748464062020,0.67576825,107230.0,107220.0,0.43235037]
[1748464062223,1.04966825,107230.0,107220.0,0.2597973]
[1748464062529,1.08857714,107230.0,107220.0,0.2596773]
[1748464062720,1.04966825,107230.0,107220.0,0.2596773]
[1748464062925,1.54549512,107230.0,107220.0,0.2596773]
[1748464063130,1.54549512,107230.0,107220.0,0.2597973]
[1748464063328,1.50658825,107230.0,107220.0,0.2596773]
[1748464063644,1.50658825,107230.0,107220.0,0.2597973]
[1748464063932,1.50658825,107230.0,107220.0,0.45391027]
[1748464064927,1.50658825,107230.0,107220.0,0.2597973]
[1748464068335,1.50658825,107230.0,107220.0,0.00791]
[1748464068542,1.70070122,107230.0,107220.0,0.28169445]
[1748464068841,1.5454699,107230.0,107220.0,0.1942799]
[1748464069027,1.5454699,107230.0,107220.0,0.2589799]
[1748464069230,1.5454699,107230.0,107220.0,0.2590999]
[1748464069430,1.6606699,107230.0,107220.0,0.2590999]
[1748464069843,1.6606699,107230.0,107220.0,0.3201999]
[1748464070031,1.6606699,107230.0,107220.0,0.2590999]
[1748464070238,1.6606699,107230.0,107220.0,0.2563099]
[1748464072748,1.6606699,107230.0,107220.0,0.2590999]
[1748464072944,1.6606385,107230.0,107220.0,0.2590999]
[1748464073532,1.6606385,107230.0,107220.0,0.3213999]
[1748464074245,1.5453985,107230.0,107220.0,0.3213999]
[1748464077244,1.70066122,107230.0,107220.0,0.13491]
[1748464077542,1.78863724,107230.0,107220.0,0.00791]
[1748464077742,1.83211839,107230.0,107220.0,0.00791]
[1748464077943,1.83211839,107230.0,107220.0,0.00779]
[1748464078249,1.83211839,107230.0,107220.0,0.00791]
[1748464081550,1.78861833,107230.0,107220.0,0.00791]
[1748464085945,1.83207881,107230.0,107220.0,0.00791]
[1748464086248,1.92533881,107230.0,107220.0,0.00791]
[1748464089250,1.9834808,107230.0,107220.0,0.00791]
[1748464089646,1.94002032,107230.0,107220.0,0.00791]
[1748464090048,1.90206321,107230.0,107220.0,0.00791]
[1748464090242,1.9399762,107230.0,107220.0,0.00791]
[1748464090452,1.98346108,107230.0,107220.0,0.00791]
[1748464090646,1.8467162,107230.0,107220.0,0.07331]
[1748464092370,1.8467162,107230.0,107220.0,0.00791]
[1748464092853,1.8467162,107230.0,107220.0,0.00779]
[1748464093060,1.8467162,107230.0,107220.0,0.00791]
[1748464093255,1.8467162,107230.0,107220.0,0.07401]
[1748464094359,1.80880321,107230.0,107220.0,0.07401]
[1748464094660,1.84673219,107230.0,107220.0,0.07401]
[1748464095551,1.84673552,107230.0,107220.0,0.07401]
[1748464095756,1.65262255,107230.0,107220.0,0.00791]
[1748464096058,1.84673552,107230.0,107220.0,0.00791]
[1748464096556,1.84673552,107230.0,107220.0,0.07291]
[1748464096954,1.84673552,107230.0,107220.0,0.07091]
[1748464098061,1.84673552,107230.0,107220.0,0.06991]
[1748464098455,1.84773552,107230.0,107220.0,0.06891]
[1748464098655,1.84973552,107230.0,107220.0,0.06791]
[1748464098856,1.84975794,107230.0,107220.0,0.06791]
[1748464099558,1.93697092,107230.0,107220.0,0.06791]
[1748464099754,1.57617092,107230.0,107220.0,0.06791]
[1748464100067,2.29749092,107230.0,107220.0,0.06791]
[1748464100855,2.21027794,107230.0,107220.0,0.06791]
[1748464101653,2.29749092,107230.0,107220.0,0.06791]
[1748464103262,2.29750015,107230.0,107220.0,0.06791]
[1748464105768,2.29742015,107230.0,107220.0,0.06791]
[1748464105951,2.29742015,107230.0,107220.0,0.12981]
[1748464107264,1.52288718,107230.0,107220.0,0.12981]
[1748464107455,1.74411619,107230.0,107220.0,0.12981]
[1748464107658,2.15138626,107230.0,107220.0,0.19591]
[1748464107860,1.50079329,107230.0,107220.0,0.3823998]
[1748464108158,1.01037255,107230.0,107220.0,0.3823998]
[1748464108370,1.58193255,107230.0,107220.0,0.3823998]
[1748464108666,1.12545255,107230.0,107220.0,0.46969435]
[1748464108864,1.01037255,107230.0,107220.0,0.46969435]
[1748464109058,1.5383313,107230.0,107220.0,0.46969435]
[1748464110267,1.73244427,107230.0,107220.0,0.46969435]
[1748464110858,1.5383313,107230.0,107220.0,0.46969435]
[1748464111670,1.53831179,107230.0,107220.0,0.46969435]
[1748464111970,1.42315179,107230.0,107220.0,0.47969435]
[1748464114058,0.96675179,107230.0,107220.0,0.67380732]
[1748464114254,0.41947909,107230.0,107220.0,0.67380732]
[1748464114462,0.56796785,107230.0,107220.0,0.94731277]
[1748464114863,0.56796785,107230.0,107220.0,1.06373622]
[1748464115471,0.56796785,107230.0,107220.0,0.94731277]
[1748464115872,0.56796785,107230.0,107220.0,0.58651277]
[1748464116068,0.56796785,107230.0,107220.0,0.94731277]
[1748464117567,0.56796785,107230.0,107220.0,1.03448941]
[1748464118978,0.38149555,107230.0,107220.0,1.12774941]
[1748464119171,0.56796795,107230.0,107220.0,1.12774941]
[1748464119473,0.19149555,107230.0,107220.0,1.12774941]
[1748464120467,0.37796795,107230.0,107220.0,1.12774941]
[1748464121077,0.19149555,107230.0,107220.0,1.12774941]
[1748464121578,0.19149555,107230.0,107220.0,1.03448941]
[1748464123167,0.19149555,107230.0,107220.0,1.35774941]
[1748464123367,0.19149555,107230.0,107220.0,1.58110919]
[1748464123969,0.19149555,107230.0,107220.0,2.03722919]
[1748464124175,0.19149555,107230.0,107220.0,2.28722919]
[1748464124970,0.19149555,107230.0,107220.0,1.83110919]
[1748464125769,0.19149555,107230.0,107220.0,1.83098919]
[1748464126174,0.19149555,107230.0,107220.0,1.58098919]
[1748464128477,0.19149555,107230.0,107220.0,1.59098919]
[1748464129074,0.19149555,107230.0,107220.0,2.04694919]
[1748464129379,0.19149555,107230.0,107220.0,1.85283622]
[1748464129969,0.19149555,107230.0,107220.0,1.84283622]
[1748464132885,0.19149555,107230.0,107220.0,1.84275622]
[1748464134984,0.19149555,107230.0,107220.0,2.03686919]
[1748464135284,0.19149555,107230.0,107220.0,2.07686919]
[1748464137078,0.19149555,107230.0,107220.0,1.88263622]
[1748464137990,0.19149555,107230.0,107220.0,2.07674919]
[1748464138190,0.19149555,107230.0,107220.0,1.23276325]
[1748464138381,0.19149555,107230.0,107220.0,1.42687622]
[1748464138786,0.19149555,107230.0,107220.0,1.62098919]
[1748464139683,0.02149555,107230.0,107220.0,1.82098919]
[1748464139889,0.02149555,107230.0,107220.0,1.43276325]
[1748464140188,0.02149555,107230.0,107220.0,3.12687622]
[1748464140377,0.02149555,107230.0,107220.0,3.32098919]
[1748464140583,0.02149555,107230.0,107220.0,3.20456574]
[1748464141289,0.02149555,107230.0,107220.0,3.01045277]
[1748464141488,0.02149555,107230.0,107220.0,2.91719277]
[1748464141693,0.02149555,107230.0,107220.0,3.01045277]
[1748464142184,0.02149555,107230.0,107220.0,3.46531222]
[1748464142389,0.02149555,107230.0,107220.0,3.46330277]
[1748464142589,0.02149555,107230.0,107220.0,3.37004277]
[1748464143389,0.02149555,107230.0,107220.0,3.56415574]
[1748464145996,0.02149555,107230.0,107220.0,3.5642292]
[1748464146689,0.02149555,107230.0,107220.0,3.7089639]
[1748464148093,0.02149555,107230.0,107220.0,3.77941697]
[1748464148789,0.02049555,107230.0,107220.0,3.32377697]
[1748464148994,0.02049555,107230.0,107220.0,2.39397697]
[1748464149391,0.01849555,107230.0,107220.0,2.39397697]
[1748464149594,0.01849555,107230.0,107220.0,3.89397697]
[1748464149994,0.01849555,107230.0,107220.0,3.90817077]
[1748464150495,0.01849555,107230.0,107220.0,3.89397697]
[1748464151897,0.01849555,107230.0,107220.0,2.39397697]
[1748464152294,0.01849555,107230.0,107220.0,3.89397697]
[1748464152495,0.01849555,107230.0,107220.0,3.8235239]
[1748464153001,0.01849555,107230.0,107220.0,3.4352245]
[1748464153193,0.01849555,107230.0,107220.0,3.8235239]
[1748464153397,0.01849555,107230.0,107220.0,4.0176736]
[1748464153589,0.01849555,107230.0,107220.0,3.8235239]
[1748464155301,0.01849555,107230.0,107220.0,3.83762512]
[1748464155498,0.01849555,107230.0,107220.0,3.44932572]
[1748464155901,0.01849555,107230.0,107220.0,3.83762512]
[1748464156100,0.01849555,107230.0,107220.0,4.03177482]
[1748464156408,0.01849555,107230.0,107220.0,3.83762512]
[1748464156904,0.01849555,107230.0,107220.0,4.03177482]
[1748464157107,5e-08,107230.0,107220.0,4.03177482]
[1748464157317,0.06374017,107240.0,107230.0,0.1864724]
[1748464157501,0.08374017,107240.0,107230.0,1.2352552]
[1748464158510,0.08474017,107240.0,107230.0,1.2352552]
[1748464159013,0.08674017,107240.0,107230.0,1.2352552]
[1748464159701,0.00314017,107240.0,107230.0,1.38420561]
[1748464160014,0.00314017,107240.0,107230.0,2.06999061]
[1748464161315,0.00214017,107240.0,107230.0,2.06995061]
[1748464161515,0.00214017,107240.0,107230.0,2.26410031]
[1748464162211,0.00014017,107240.0,107230.0,2.26410031]
[1748464163709,0.00014017,107240.0,107230.0,1.80894031]
[1748464163910,0.00014017,107240.0,107230.0,1.61479061]
[1748464164121,0.00014017,107240.0,107230.0,1.84987061]
[1748464164414,0.13264017,107240.0,107230.0,1.96427061]
[1748464164711,0.13264017,107240.0,107230.0,1.1878968]
[1748464164712,0.19354017,107240.0,107230.0,1.1878968]
[1748464164919,0.19354017,107240.0,107230.0,1.0430421]
[1748464165109,0.37999517,107240.0,107230.0,1.0431621]
[1748464165619,0.19354017,107240.0,107230.0,1.0431621]
[1748464165812,0.37999517,107240.0,107230.0,1.0431621]
[1748464166307,0.37999517,107240.0,107230.0,0.6823621]
[1748464166509,0.37999517,107240.0,107230.0,1.15946183]
[1748464166816,0.37999517,107240.0,107230.0,0.6823621]
[1748464167118,0.37999517,107240.0,107230.0,1.0431621]
[1748464167514,0.37999517,107240.0,107230.0,0.4882124]
[1748464167813,0.39999517,107240.0,107230.0,0.7363396]
[1748464168013,0.39999517,107240.0,107230.0,0.73650099]
[1748464168214,0.76079517,107240.0,107230.0,0.62218099]
[1748464168416,0.97300754,107240.0,107230.0,0.00012]
[1748464168717,0.1864723,107230.0,107220.0,0.08866669]
[1748464168913,1.96115665,107230.0,107220.0,0.18788865]
[1748464169216,1.96115665,107230.0,107220.0,0.38219974]
[1748464169217,1.67822111,107230.0,107220.0,0.38219974]
[1748464169421,0.81882913,107230.0,107220.0,0.38219974]
[1748464169610,1.27374913,107230.0,107220.0,0.53076748]
[1748464170011,1.15938913,107230.0,107220.0,0.53076748]
[1748464170617,1.12136785,107230.0,107220.0,0.53076748]